bitfinex-derivatives/quotes_BTCF0:USTF0_20250929
["timestamp","ask_amount","ask_price","bid_price","bid_amount"]
[1759106227456,1.53778645,112150.0,112140.0,0.78748161]
[1759106227756,0.44634843,112150.0,112140.0,1.04495963]
[1759106228152,1.28022843,112150.0,112140.0,1.04495963]
[1759106228351,1.28038843,112150.0,112140.0,1.04495963]
[1759106229251,1.28034843,112150.0,112140.0,1.04495963]
[1759106229749,0.44634843,112150.0,112140.0,1.04495963]
[1759106229956,1.28026843,112150.0,112140.0,1.04495963]
[1759106230151,0.44634843,112150.0,112140.0,0.53000359]
[1759106230356,1.28046843,112150.0,112140.0,1.04529713]
[1759106230854,1.2166256,112150.0,112140.0,1.04529713]
[1759106231556,0.3823456,112150.0,112140.0,1.04529713]
[1759106231751,1.26460373,112150.0,112140.0,1.04529713]
[1759106233956,1.35372953,112150.0,112140.0,1.04529713]
[1759106236954,1.26460373,112150.0,112140.0,1.04529713]
[1759106239261,1.35372953,112150.0,112140.0,1.04529713]
[1759106240558,1.35372953,112150.0,112140.0,0.53000359]
[1759106240763,1.35372953,112150.0,112140.0,0.78765036]
[1759106241462,1.33771412,112150.0,112140.0,0.78765036]
[1759106241665,1.33771412,112150.0,112140.0,1.04529713]
[1759106245160,1.3057114,112150.0,112140.0,0.29851666]
[1759106245467,1.3057114,112150.0,112140.0,0.38765046]
[1759106246861,0.4714714,112150.0,112140.0,0.38765046]
[1759106247062,1.2175456,112150.0,112140.0,0.38765046]
[1759106247567,1.3067114,112150.0,112140.0,0.38765046]
[1759106247759,1.33871412,112150.0,112140.0,0.38765046]
[1759106248260,0.41434832,112150.0,112140.0,1.04529723]
[1759106248463,1.24966832,112150.0,112140.0,1.04529723]
[1759106250063,1.24966832,112150.0,112140.0,0.04086989]
[1759106250064,1.63298763,112150.0,112140.0,0.04086989]
[1759106250268,1.9849695,112150.0,112140.0,0.04086989]
[1759106250568,2.028441,112150.0,112140.0,0.04086989]
[1759106250767,1.96443817,112150.0,112140.0,0.04086989]
[1759106252767,1.7067914,112150.0,112140.0,0.04086989]
[1759106252970,1.96443817,112150.0,112140.0,0.04086989]
[1759106255972,1.03999237,112150.0,112140.0,0.04086989]
[1759106256269,0.43037683,112150.0,112140.0,0.38765046]
[1759106256477,1.26413683,112150.0,112140.0,0.78765046]
[1759106258478,1.35326273,112150.0,112140.0,0.29851666]
[1759106258680,1.6268811,112150.0,112140.0,0.04086989]
[1759106258879,2.03143109,112150.0,112140.0,0.00607989]
[1759106259183,2.24104302,112150.0,112140.0,0.00607989]
[1759106259481,1.84104302,112150.0,112140.0,0.00607989]
[1759106259678,1.90504585,112150.0,112140.0,0.00607989]
[1759106259976,2.32089175,112150.0,112140.0,5.3e-07]
[1759106260582,1.92089175,112150.0,112130.0,0.0138]
[1759106260771,1.0292503,112140.0,112130.0,0.0138]
[1759106260976,1.05078454,112140.0,112130.0,0.0138]
[1759106261189,0.0891417,112130.0,112120.0,0.0128]
[1759106261383,0.78760569,112130.0,112120.0,0.0128]
[1759106261688,1.5946101,112130.0,112120.0,0.03464]
[1759106261978,1.5946101,112130.0,112120.0,0.0128]
[1759106262182,0.0891497,112120.0,112110.0,0.01321]
[1759106262375,0.72916338,112120.0,112110.0,0.01321]
[1759106262576,0.72916338,112120.0,112110.0,0.03505]
[1759106263188,0.72916338,112120.0,112110.0,0.01321]
[1759106263395,0.0891576,112110.0,112100.0,0.0138]
[1759106263592,0.7478357,112110.0,112100.0,0.0138]
[1759106263892,1.5794757,112110.0,112100.0,0.0138]
[1759106264089,1.57987742,112110.0,112100.0,0.0138]
[1759106264396,0.0891656,112100.0,112090.0,0.0138]
[1759106264586,0.77983826,112100.0,112090.0,0.0138]
[1759106264785,1.61323826,112100.0,112090.0,0.0138]
[1759106264986,0.49951163,112100.0,112090.0,0.0138]
[1759106265182,1.3009351,112100.0,112090.0,0.03564]
[1759106265395,0.4715351,112100.0,112090.0,0.03564]
[1759106265695,0.3823695,112100.0,112090.0,0.03764]
[1759106265994,0.3823695,112100.0,112090.0,0.40714023]
[1759106266196,1.2156495,112100.0,112090.0,0.31996663]
[1759106266497,0.3823695,112100.0,112090.0,0.03964]
[1759106266688,1.3047751,112100.0,112090.0,0.03964]
[1759106267297,1.3047751,112100.0,112090.0,0.0178]
[1759106267795,0.4715351,112100.0,112090.0,0.0178]
[1759106268000,1.32509688,112100.0,112090.0,0.0178]
[1759106268300,1.39743667,112100.0,112090.0,0.004]
[1759106268593,2.0777633,112100.0,112090.0,0.004]
[1759106268894,1.8294132,112100.0,112090.0,0.004]
[1759106269093,1.79743667,112100.0,112090.0,0.004]
[1759106269400,0.45471154,112100.0,112090.0,0.31884663]
[1759106269697,1.28755154,112100.0,112090.0,0.40802023]
[1759106269888,1.28759154,112100.0,112090.0,0.40802023]
[1759106270088,1.2661368,112100.0,112090.0,0.40802023]
[1759106270390,0.4332568,112100.0,112090.0,0.40802023]
[1759106270789,1.2660968,112100.0,112090.0,0.40802023]
[1759106270990,1.3552624,112100.0,112090.0,0.80802023]
[1759106271191,1.2660968,112100.0,112090.0,0.80802023]
[1759106271391,1.2659368,112100.0,112090.0,0.80802023]
[1759106271594,1.3551024,112100.0,112090.0,0.80802023]
[1759106272195,1.2659368,112100.0,112090.0,0.80802023]
[1759106272393,1.2656568,112100.0,112090.0,0.80802023]
[1759106272693,0.36091476,112100.0,112090.0,0.80802023]
[1759106273492,0.45008036,112100.0,112090.0,0.80802023]
[1759106274603,0.36091476,112100.0,112090.0,0.80802023]
[1759106276898,0.45008036,112100.0,112090.0,0.80802023]
[1759106278598,0.36091476,112100.0,112090.0,0.80802023]
[1759106279106,1.19208,112120.0,112110.0,0.1236776]
[1759106279302,1.21334632,112120.0,112110.0,0.40400423]
[1759106279598,0.38206632,112120.0,112110.0,0.40400423]
[1759106279798,1.30237602,112120.0,112110.0,0.40400423]
[1759106280006,1.30246421,112120.0,112110.0,0.31484663]
[1759106280199,1.30246421,112120.0,112110.0,0.40400423]
[1759106280399,1.30246421,112120.0,112110.0,0.31484663]
[1759106280593,1.30546421,112120.0,112110.0,0.40400423]
[1759106281107,1.22131451,112120.0,112110.0,0.40400423]
[1759106281505,1.29128306,112120.0,112110.0,0.40400423]
[1759106282098,1.38043276,112120.0,112110.0,0.40400423]
[1759106284508,1.29128306,112120.0,112110.0,0.40400423]
[1759106284905,1.38043276,112120.0,112110.0,0.40400423]
[1759106286199,1.38043276,112120.0,112110.0,0.63928858]
[1759106292217,1.38043276,112120.0,112110.0,0.63927722]
[1759106294414,1.38043276,112120.0,112110.0,0.29231981]
[1759106294607,1.38043276,112120.0,112110.0,0.38147741]
[1759106295506,2.0702091,112120.0,112110.0,0.29231981]
[1759106295709,2.11821943,112120.0,112110.0,0.29231981]
[1759106296310,2.11821943,112120.0,112110.0,0.03452]
[1759106296614,2.11821943,112120.0,112110.0,0.29231981]
[1759106297405,2.11821943,112120.0,112110.0,0.03452]
[1759106297611,2.11821943,112120.0,112110.0,0.01264]
[1759106297815,2.11821943,112120.0,112110.0,0.27043981]
[1759106299211,2.0862429,112120.0,112110.0,0.27043981]
[1759106299409,2.0862429,112120.0,112110.0,0.01264]
[1759106299619,2.0862429,112120.0,112110.0,0.27043981]
[1759106299816,2.34404271,112120.0,112110.0,0.01264]
[1759106300307,2.29603238,112120.0,112110.0,0.01264]
[1759106300723,1.77699276,112120.0,112110.0,0.01264]
[1759106301018,2.35661534,112120.0,112110.0,0.01264]
[1759106301520,2.34059652,112120.0,112110.0,0.01264]
[1759106301917,2.37259928,112120.0,112110.0,0.01264]
[1759106302111,1.54487928,112120.0,112110.0,0.01264]
[1759106302516,2.37231928,112120.0,112110.0,0.01264]
[1759106302822,1.51287652,112120.0,112110.0,0.01264]
[1759106303012,2.34019652,112120.0,112110.0,0.01264]
[1759106303420,2.37219795,112120.0,112110.0,0.01264]
[1759106304722,1.85659833,112120.0,112110.0,0.01264]
[1759106304922,2.37219795,112120.0,112110.0,0.01264]
[1759106305123,2.37219795,112120.0,112110.0,0.27043981]
[1759106305624,2.11439814,112120.0,112110.0,0.27043981]
[1759106306120,2.37219795,112120.0,112110.0,0.27043981]
[1759106306324,1.69297795,112120.0,112110.0,0.27043981]
[1759106306524,2.51997795,112120.0,112110.0,0.27043981]
[1759106306823,2.00413833,112120.0,112110.0,0.27043981]
[1759106307026,2.26193814,112120.0,112110.0,0.27043981]
[1759106309923,1.43517814,112120.0,112110.0,0.27043981]
[1759106310129,1.04022449,112120.0,112110.0,0.27043981]
[1759106310327,2.213334,112120.0,112110.0,0.27043981]
[1759106310523,2.47113381,112120.0,112110.0,0.01264]
[1759106310730,2.47113381,112120.0,112110.0,0.27043981]
[1759106311027,2.26133814,112120.0,112110.0,0.27043981]
[1759106311228,1.12937419,112120.0,112110.0,0.27043981]
[1759106311432,1.387174,112120.0,112110.0,0.27043981]
[1759106311622,2.26133814,112120.0,112110.0,0.27043981]
[1759106312025,2.213334,112120.0,112110.0,0.27043981]
[1759106312325,2.213334,112120.0,112110.0,0.01264]
[1759106312526,2.213334,112120.0,112110.0,0.27043981]
[1759106313731,2.213334,112120.0,112110.0,0.01264]
[1759106314034,2.213334,112120.0,112110.0,0.38094741]
[1759106314035,1.71828449,112120.0,112110.0,0.38094741]
[1759106314224,0.49212449,112120.0,112110.0,0.38094741]
[1759106314420,1.28596306,112120.0,112110.0,0.38094741]
[1759106314620,0.46012306,112120.0,112110.0,0.38094741]
[1759106314823,0.46012306,112120.0,112110.0,1.03874722]
[1759106315031,0.02935451,112120.0,112110.0,1.03874722]
[1759106319532,0.02935451,112120.0,112110.0,0.63874722]
[1759106321640,0.39015451,112120.0,112110.0,0.63874722]
[1759106322839,0.47930411,112120.0,112110.0,0.63874722]
[1759106324533,0.4793201,112120.0,112110.0,0.29178981]
[1759106326041,0.4793201,112120.0,112110.0,0.38094741]
[1759106326435,0.4793201,112120.0,112110.0,0.29178981]
[1759106326436,0.73711991,112120.0,112110.0,0.29178981]
[1759106326636,0.4793201,112120.0,112110.0,0.29178981]
[1759106327540,0.73711991,112120.0,112110.0,0.29178981]
[1759106327734,0.50049328,112120.0,112110.0,0.38094741]
[1759106327934,1.32577328,112120.0,112110.0,0.38094741]
[1759106328241,1.32577328,112120.0,112110.0,0.29178981]
[1759106329442,1.35777471,112120.0,112110.0,0.29178981]
[1759106329648,1.61557452,112120.0,112110.0,0.29178981]
[1759106329943,1.61557452,112120.0,112110.0,0.27043981]
[1759106329944,2.01557452,112120.0,112110.0,0.27043981]
[1759106330942,2.01513452,112120.0,112110.0,0.27043981]
[1759106331849,2.01521452,112120.0,112110.0,0.27043981]
[1759106332648,1.19029452,112120.0,112110.0,0.27043981]
[1759106332948,1.23594368,112120.0,112110.0,0.29258981]
[1759106333645,0.41134368,112120.0,112110.0,0.29258981]
[1759106333938,0.50049328,112120.0,112110.0,0.03479]
[1759106334139,1.32513328,112120.0,112110.0,0.29258981]
[1759106335941,0.50049328,112120.0,112110.0,0.29258981]
[1759106336147,1.58289309,112120.0,112110.0,0.29258981]
[1759106336348,1.32509328,112120.0,112110.0,0.29258981]
[1759106336547,1.58289309,112120.0,112110.0,0.29258981]
[1759106337244,0.75829309,112120.0,112110.0,0.29258981]
[1759106337448,1.58253309,112120.0,112110.0,0.29258981]
[1759106337652,0.66914349,112120.0,112110.0,0.38174741]
[1759106337842,1.23534368,112120.0,112110.0,0.38174741]
[1759106338143,1.49314349,112120.0,112110.0,0.38174741]
[1759106338451,0.41134368,112120.0,112110.0,0.38174741]
[1759106338647,1.23534368,112120.0,112110.0,0.38174741]
[1759106338844,0.41134368,112120.0,112110.0,0.38174741]
[1759106339045,1.23522368,112120.0,112110.0,0.38174741]
[1759106339549,0.41134368,112120.0,112110.0,0.38174741]
[1759106339749,1.2138505,112120.0,112110.0,0.63954722]
[1759106339954,0.3901705,112120.0,112110.0,0.63954722]
[1759106340251,1.2139305,112120.0,112110.0,0.63954722]
[1759106340438,1.2139305,112120.0,112110.0,0.64851975]
[1759106341550,1.24593193,112120.0,112110.0,0.64851975]
[1759106342749,0.42217193,112120.0,112110.0,0.64851975]
[1759106343248,0.06137193,112120.0,112110.0,1.04851975]
[1759106345342,0.42217193,112120.0,112110.0,1.04851975]
[1759106348851,0.06137193,112120.0,112110.0,1.04851975]
[1759106351546,0.0293705,112120.0,112110.0,1.04851975]
[1759106352250,0.0293705,112120.0,112110.0,1.04845241]
[1759106361057,0.0293705,112120.0,112110.0,0.53292013]
[1759106361259,0.1185201,112120.0,112110.0,1.04845241]
[1759106363260,0.0293705,112120.0,112110.0,1.04845241]
[1759106365866,0.0293705,112120.0,112110.0,0.53292013]
[1759106366159,0.1185201,112120.0,112110.0,1.04845241]
[1759106367563,0.0293705,112120.0,112110.0,1.04845241]
[1759106370958,0.06137193,112120.0,112110.0,1.04845241]
[1759106373664,0.15052153,112120.0,112110.0,1.04845241]
[1759106373863,0.15052153,112120.0,112110.0,0.53292013]
[1759106374065,0.15052153,112120.0,112110.0,1.04845241]
[1759106374267,0.15052153,112120.0,112110.0,1.87041241]
[1759106375465,0.1185201,112120.0,112110.0,1.87041241]
[1759106376066,0.0293705,112120.0,112110.0,1.87041241]
[1759106376264,0.1185201,112120.0,112110.0,1.87041241]
[1759106378870,0.1185201,112120.0,112110.0,1.04845241]
[1759106379466,0.1185201,112120.0,112110.0,0.64845241]
[1759106382671,0.1185201,112120.0,112110.0,0.55032228]
[1759106384558,0.1185201,112120.0,112110.0,0.63947988]
[1759106385971,0.1185201,112120.0,112110.0,0.1239476]
[1759106386170,0.15052153,112120.0,112110.0,0.1239476]
[1759106386372,0.15052153,112120.0,112110.0,0.63947988]
[1759106391673,0.1185201,112120.0,112110.0,0.63947988]
[1759106392674,0.15052153,112120.0,112110.0,0.63947988]
[1759106394171,0.91132153,112120.0,112110.0,0.29255614]
[1759106394677,1.73308153,112120.0,112110.0,0.29255614]
[1759106394979,0.93215593,112120.0,112110.0,0.29255614]
[1759106395276,1.75391593,112120.0,112110.0,0.29255614]
[1759106395473,1.75391593,112120.0,112110.0,0.38171374]
[1759106395676,0.93215593,112120.0,112110.0,0.38171374]
[1759106395875,1.75391593,112120.0,112110.0,0.38171374]
[1759106398367,0.93215593,112120.0,112110.0,0.38171374]
[1759106398568,1.75391593,112120.0,112110.0,0.38171374]
[1759106398773,0.93215593,112120.0,112110.0,0.38171374]
[1759106399076,1.75387593,112120.0,112110.0,0.38171374]
[1759106399273,2.01164207,112120.0,112110.0,0.01264]
[1759106399580,0.0891576,112110.0,112100.0,0.01264]
[1759106399777,0.72909424,112110.0,112100.0,0.01264]
[1759106400178,0.4713281,112110.0,112100.0,0.38261164]
[1759106400382,1.2930481,112110.0,112100.0,0.29344614]
[1759106400989,1.2960481,112110.0,112100.0,0.29344614]
[1759106402586,1.2980481,112110.0,112100.0,0.29344614]
[1759106405390,1.2980481,112110.0,112100.0,0.03568]
[1759106405793,1.2980481,112110.0,112100.0,0.29344614]
[1759106407694,1.2980481,112110.0,112100.0,0.03568]
[1759106407695,1.55581424,112110.0,112100.0,0.03568]
[1759106407894,1.2980481,112110.0,112100.0,0.29344614]
[1759106408906,0.4763281,112110.0,112100.0,0.29344614]
[1759106409201,1.2979681,112110.0,112100.0,0.03568]
[1759106409395,1.2979681,112110.0,112100.0,0.29344614]
[1759106409596,1.2979681,112110.0,112100.0,0.03568]
[1759106409796,1.2979681,112110.0,112100.0,0.29344614]
[1759106410696,1.2979681,112110.0,112100.0,0.03568]
[1759106410999,1.55573424,112110.0,112100.0,0.03568]
[1759106412202,1.55587719,112110.0,112100.0,0.29358909]
[1759106412402,1.55587719,112110.0,112100.0,0.03568]
[1759106412589,1.55587719,112110.0,112100.0,0.29358909]
[1759106416202,1.2979681,112110.0,112100.0,0.03568]
[1759106416402,1.55587719,112110.0,112100.0,0.29358909]
[1759106417899,1.55587719,112110.0,112100.0,0.03568]
[1759106418098,1.55587719,112110.0,112100.0,0.29358909]
[1759106418698,1.95587719,112110.0,112100.0,0.01264]
[1759106418906,0.0891655,112100.0,112090.0,0.01264]
[1759106419109,1.82937414,112100.0,112090.0,0.01264]
[1759106419805,1.00781414,112100.0,112090.0,0.01264]
[1759106420013,1.82937414,112100.0,112090.0,0.03486]
[1759106421407,1.82937414,112100.0,112090.0,0.01264]
[1759106422109,1.00781414,112100.0,112090.0,0.01264]
[1759106422309,1.82937414,112100.0,112090.0,0.01264]
[1759106422909,1.82937414,112100.0,112090.0,0.27054909]
[1759106423106,1.82937414,112100.0,112090.0,0.01264]
[1759106423808,1.00781414,112100.0,112090.0,0.01264]
[1759106424009,1.82937414,112100.0,112090.0,0.01264]
[1759106424507,1.80871418,112100.0,112090.0,0.01264]
[1759106425610,1.292896,112100.0,112090.0,0.01264]
[1759106425812,1.80871418,112100.0,112090.0,0.01264]
[1759106426411,1.80871418,112100.0,112090.0,0.03486]
[1759106427612,1.80871418,112100.0,112090.0,0.29276909]
[1759106428007,0.0891735,112090.0,112080.0,0.0138]
[1759106428211,0.72924233,112090.0,112080.0,0.0138]
[1759106428910,0.72924233,112090.0,112080.0,0.27170909]
[1759106429409,0.72924233,112090.0,112080.0,0.0188]
[1759106430512,0.73800128,112090.0,112080.0,0.0188]
[1759106431215,0.8083382,112090.0,112080.0,0.0188]
[1759106432511,1.6298182,112090.0,112080.0,0.0188]
[1759106434816,2.0298182,112090.0,112080.0,0.0188]
[1759106437004,2.0297382,112090.0,112080.0,0.04102]
[1759106437208,2.0297382,112090.0,112080.0,0.03802]
[1759106437425,2.06173963,112090.0,112080.0,0.03802]
[1759106437910,0.98243054,112090.0,112080.0,0.03602]
[1759106438108,1.40383054,112090.0,112080.0,0.55183818]
[1759106438819,1.41983325,112090.0,112080.0,0.55183818]
[1759106439222,1.45184977,112090.0,112080.0,0.55183818]
[1759106440322,1.40384563,112090.0,112080.0,0.55183818]
[1759106440620,0.58244563,112090.0,112080.0,0.55183818]
[1759106440814,1.67774234,112090.0,112080.0,0.03602]
[1759106441015,1.67774234,112090.0,112080.0,0.29392909]
[1759106441314,1.41983325,112090.0,112080.0,0.29392909]
[1759106441516,1.66174033,112090.0,112080.0,0.29392909]
[1759106442214,1.40383124,112090.0,112080.0,0.29392909]
[1759106442413,1.66174033,112090.0,112080.0,0.29392909]
[1759106443324,1.6297382,112090.0,112080.0,0.29392909]
[1759106443524,1.6297382,112090.0,112080.0,0.03602]
[1759106443717,1.6297382,112090.0,112080.0,0.29392909]
[1759106444626,1.37182911,112090.0,112080.0,0.29392909]
[1759106444827,1.6296182,112090.0,112080.0,0.29392909]
[1759106445827,0.55042911,112090.0,112080.0,0.29392909]
[1759106446031,1.6296182,112090.0,112080.0,0.29392909]
[1759106447431,1.37170911,112090.0,112080.0,0.29392909]
[1759106447729,1.6296182,112090.0,112080.0,0.29392909]
[1759106448031,1.6296182,112090.0,112080.0,0.55183818]
[1759106448431,1.6296182,112090.0,112080.0,0.52961818]
[1759106448629,1.6296182,112090.0,112080.0,0.03544]
[1759106448831,1.6296182,112090.0,112080.0,0.0138]
[1759106449025,1.6296182,112090.0,112080.0,0.27170909]
[1759106449220,1.6296182,112090.0,112080.0,0.29334909]
[1759106449631,1.6296182,112090.0,112080.0,0.03544]
[1759106449932,1.6296182,112090.0,112080.0,0.29334909]
[1759106451134,1.37170911,112090.0,112080.0,0.29334909]
[1759106451336,1.6296182,112090.0,112080.0,0.29334909]
[1759106453739,0.0891814,112080.0,112070.0,0.03443]
[1759106453944,0.7291728,112080.0,112070.0,0.29233909]
[1759106455135,0.7291728,112080.0,112070.0,0.29433909]
[1759106455634,0.7291728,112080.0,112070.0,0.29733909]
[1759106456235,0.47126371,112080.0,112070.0,0.29733909]
[1759106456942,0.47126371,112080.0,112070.0,0.03943]
[1759106457144,0.47126371,112080.0,112070.0,0.29733909]
[1759106457743,0.49238286,112080.0,112070.0,0.03943]
[1759106457944,0.49238286,112080.0,112070.0,0.29733909]
[1759106458145,0.47126371,112080.0,112070.0,0.03943]
[1759106458347,0.47126371,112080.0,112070.0,0.29733909]
[1759106459148,0.47126371,112080.0,112070.0,0.38652849]
[1759106459149,1.29230371,112080.0,112070.0,0.38652849]
[1759106459340,1.29230371,112080.0,112070.0,0.1286194]
[1759106460041,0.47126371,112080.0,112070.0,0.38652849]
[1759106460340,1.29230371,112080.0,112070.0,0.38652849]
[1759106460646,1.31273623,112080.0,112070.0,0.29733909]
[1759106461146,1.29230371,112080.0,112070.0,0.29733909]
[1759106462553,1.29230371,112080.0,112070.0,0.38652539]
[1759106463147,0.47126371,112080.0,112070.0,0.38652539]
[1759106463446,1.29222371,112080.0,112070.0,0.29733909]
[1759106463951,1.29222371,112080.0,112070.0,0.38652729]
[1759106464447,1.5709384,112080.0,112070.0,0.29733909]
[1759106464643,1.29222371,112080.0,112070.0,0.29733909]
[1759106465050,1.29222371,112080.0,112070.0,0.38652779]
[1759106465348,1.29222371,112080.0,112070.0,0.29733909]
[1759106466843,1.29222371,112080.0,112070.0,0.38652689]
[1759106467043,0.47126371,112080.0,112070.0,0.38652689]
[1759106467246,1.29214371,112080.0,112070.0,0.38652689]
[1759106467441,0.47126371,112080.0,112070.0,0.38652689]
[1759106467646,1.29214371,112080.0,112070.0,0.38652689]
[1759106468454,0.47126371,112080.0,112070.0,0.38652689]
[1759106468650,1.29214371,112080.0,112070.0,0.38652689]
[1759106469453,0.47126371,112080.0,112070.0,0.38652689]
[1759106469652,1.29210371,112080.0,112070.0,0.38652689]
[1759106472255,1.29210371,112080.0,112070.0,0.38660726]
[1759106472456,1.29210371,112080.0,112070.0,0.1286178]
[1759106472644,1.29210371,112080.0,112070.0,0.38660726]
[1759106473856,0.02128231,112080.0,112070.0,0.38660726]
[1759106474059,0.26138074,112090.0,112080.0,0.1239698]
[1759106474252,1.08210057,112090.0,112080.0,0.38195926]
[1759106474857,0.17220567,112090.0,112080.0,1.03994872]
[1759106475060,0.99292567,112090.0,112080.0,1.03994872]
[1759106475247,0.87458461,112090.0,112080.0,1.03994872]
[1759106476020,0.05386461,112090.0,112080.0,1.03994872]
[1759106476155,0.03207956,112090.0,112080.0,1.03994872]
[1759106480049,0.02186248,112090.0,112080.0,1.03994872]
[1759106481755,0.03207956,112090.0,112080.0,1.03994872]
[1759106482055,0.14303641,112090.0,112080.0,0.78195926]
[1759106483060,0.11103428,112090.0,112080.0,0.78195926]
[1759106483260,0.14303641,112090.0,112080.0,0.78195926]
[1759106484456,0.14803641,112090.0,112080.0,0.78195926]
[1759106485160,0.11603428,112090.0,112080.0,0.78195926]
[1759106485462,0.14803641,112090.0,112080.0,0.78195926]
[1759106486155,0.11603428,112090.0,112080.0,0.78195926]
[1759106486461,0.02686248,112090.0,112080.0,0.78195926]
[1759106487062,0.03707956,112090.0,112080.0,0.78195926]
[1759106487263,0.02686248,112090.0,112080.0,0.78195926]
[1759106488364,0.02686248,112090.0,112080.0,1.03994872]
[1759106492169,0.02686248,112090.0,112080.0,0.5239698]
[1759106492361,0.02686248,112090.0,112080.0,1.03994872]
[1759106492667,0.02686248,112090.0,112080.0,1.00074872]
[1759106492873,0.02686248,112090.0,112080.0,1.40074872]
[1759106493063,0.3608,112100.0,112080.0,1.40074872]
[1759106493064,0.3608,112100.0,112090.0,0.1236203]
[1759106493262,0.3608,112100.0,112090.0,0.38160976]
[1759106493462,0.3608,112100.0,112090.0,1.20180976]
[1759106494264,0.3658,112100.0,112090.0,1.20180976]
[1759106494463,0.3688,112100.0,112090.0,1.20180976]
[1759106495267,0.3688,112100.0,112090.0,0.38160976]
[1759106495471,0.3688,112100.0,112090.0,1.20172976]
[1759106497269,0.4579627,112100.0,112090.0,0.38160976]
[1759106497474,0.4579627,112100.0,112090.0,1.20168976]
[1759106497868,0.4579627,112100.0,112090.0,1.21047481]
[1759106498070,0.4579627,112100.0,112090.0,0.38160976]
[1759106500773,0.71595216,112100.0,112090.0,0.03445]
[1759106501576,0.4579627,112100.0,112090.0,0.29243946]
[1759106505072,0.47958358,112100.0,112090.0,0.29243946]
[1759106507481,0.47958358,112100.0,112090.0,0.03445]
[1759106507780,0.47958358,112100.0,112090.0,0.29243946]
[1759106509074,1.29938358,112100.0,112090.0,0.29243946]
[1759106509482,1.29939196,112100.0,112090.0,0.29243946]
[1759106509881,0.47959196,112100.0,112090.0,0.29243946]
[1759106510083,1.29939196,112100.0,112090.0,0.29243946]
[1759106510583,1.33139409,112100.0,112090.0,0.29243946]
[1759106510780,0.51159409,112100.0,112090.0,0.29243946]
[1759106511084,1.33135409,112100.0,112090.0,0.29243946]
[1759106511279,0.51159409,112100.0,112090.0,0.29243946]
[1759106511486,1.33131409,112100.0,112090.0,0.29243946]
[1759106513475,0.51159409,112100.0,112090.0,0.29243946]
[1759106513983,1.33127409,112100.0,112090.0,0.29243946]
[1759106514789,0.51159409,112100.0,112090.0,0.29243946]
[1759106515088,1.33127409,112100.0,112090.0,0.29243946]
[1759106516685,1.33119409,112100.0,112090.0,0.29243946]
[1759106517591,0.51159409,112100.0,112090.0,0.29243946]
[1759106518089,1.33119409,112100.0,112090.0,0.29243946]
[1759106518686,0.51159409,112100.0,112090.0,0.29243946]
[1759106518992,1.33115409,112100.0,112090.0,0.29243946]
[1759106519686,0.51159409,112100.0,112090.0,0.29243946]
[1759106519887,1.33111409,112100.0,112090.0,0.29243946]
[1759106530806,1.33091409,112100.0,112090.0,0.29243946]
[1759106531617,1.29891196,112100.0,112090.0,0.29243946]
[1759106531805,1.29891196,112100.0,112090.0,0.03445]
[1759106532006,1.29891196,112100.0,112090.0,0.29243946]
[1759106533210,1.29891196,112100.0,112090.0,0.38160916]
[1759106534309,1.29891196,112100.0,112090.0,0.38154478]
[1759106534509,1.29891196,112100.0,112090.0,0.29237508]
[1759106534712,1.55683704,112100.0,112090.0,0.29237508]
[1759106540512,1.55683704,112100.0,112090.0,0.03445]
[1759106540713,1.55683704,112100.0,112090.0,0.29237508]
[1759106540917,1.58883917,112100.0,112090.0,0.29237508]
[1759106542211,1.58883917,112100.0,112090.0,0.03445]
[1759106542405,1.58883917,112100.0,112090.0,0.29237508]
[1759106543116,1.33091409,112100.0,112090.0,0.29237508]
[1759106543316,1.58883917,112100.0,112090.0,0.29237508]
[1759106544217,1.33091409,112100.0,112090.0,0.29237508]
[1759106544419,1.58883917,112100.0,112090.0,0.29237508]
[1759106544921,1.58883917,112100.0,112090.0,0.03445]
[1759106545118,1.58883917,112100.0,112090.0,0.29237508]
[1759106545923,1.33091409,112100.0,112090.0,0.29237508]
[1759106546126,1.58883917,112100.0,112090.0,0.29237508]
[1759106547722,1.33047409,112100.0,112090.0,0.38154528]
[1759106548825,1.58839917,112100.0,112090.0,0.29237508]
[1759106551421,1.33047409,112100.0,112090.0,0.03445]
[1759106551625,1.89432839,112100.0,112090.0,0.03445]
[1759106551818,2.24632425,112100.0,112090.0,0.01293]
[1759106552019,2.29432839,112100.0,112090.0,0.01293]
[1759106552315,2.24632425,112100.0,112090.0,0.01293]
[1759106552519,2.29432839,112100.0,112090.0,0.01293]
[1759106553427,2.24632425,112100.0,112090.0,0.01293]
[1759106553732,2.29432839,112100.0,112090.0,0.01293]
[1759106559528,1.89432839,112100.0,112090.0,0.01293]
[1759106559727,1.84632425,112100.0,112090.0,0.01293]
[1759106560430,1.86232626,112100.0,112090.0,0.01293]
[1759106561332,1.89440026,112100.0,112090.0,0.01293]
[1759106561526,0.0891701,112090.0,112080.0,0.29297508]
[1759106561726,0.72952444,112090.0,112080.0,0.29297508]
[1759106562833,0.76159844,112090.0,112080.0,0.29297508]
[1759106563028,0.76159844,112090.0,112080.0,0.01332]
[1759106563230,0.76259844,112090.0,112080.0,0.27124508]
[1759106563426,0.73052444,112090.0,112080.0,0.01332]
[1759106563630,0.76259844,112090.0,112080.0,0.27124508]
[1759106564232,0.83366291,112090.0,112080.0,0.27224508]
[1759106566832,0.85446702,112090.0,112080.0,0.27224508]
[1759106567931,1.67294702,112090.0,112080.0,0.29397508]
[1759106569434,0.59473174,112090.0,112080.0,0.29397508]
[1759106569634,1.67113682,112090.0,112080.0,0.29397508]
[1759106570137,1.67113682,112090.0,112080.0,0.27224508]
[1759106570336,1.67113682,112090.0,112080.0,0.01432]
[1759106570634,1.67113682,112090.0,112080.0,0.27224508]
[1759106571236,1.67113682,112090.0,112080.0,0.29549508]
[1759106571630,1.71914096,112090.0,112080.0,0.29549508]
[1759106571838,1.46117588,112090.0,112080.0,0.29549508]
[1759106572030,1.71910096,112090.0,112080.0,0.29549508]
[1759106572741,0.64273588,112090.0,112080.0,0.29549508]
[1759106572934,1.71910096,112090.0,112080.0,0.29549508]
[1759106573335,0.62193177,112090.0,112080.0,0.29549508]
[1759106573537,1.69825685,112090.0,112080.0,0.29549508]
[1759106573733,0.87985685,112090.0,112080.0,0.29549508]
[1759106573937,1.69825685,112090.0,112080.0,0.29549508]
[1759106574437,0.87985685,112090.0,112080.0,0.29549508]
[1759106574632,1.65025271,112090.0,112080.0,0.29549508]
[1759106575237,1.67063739,112090.0,112080.0,0.29549508]
[1759106575939,1.71864153,112090.0,112080.0,0.29549508]
[1759106581540,1.67063739,112090.0,112080.0,0.29549508]
[1759106583742,1.41271231,112090.0,112080.0,0.29549508]
[1759106584043,1.67063739,112090.0,112080.0,0.29549508]
[1759106584838,0.85223739,112090.0,112080.0,0.29549508]
[1759106585042,1.67043739,112090.0,112080.0,0.29549508]
[1759106585637,0.85223739,112090.0,112080.0,0.29549508]
[1759106585843,1.67039739,112090.0,112080.0,0.29549508]
[1759106586045,1.67048026,112090.0,112080.0,0.29549508]